fUSD/lending_fUSD_20240719
["ID","MTS","AMOUNT","RATE_DAILY","PERIOD"]
[332646641,1721404249643,-500.0,0.00033287,14]
[332646642,1721404249654,-996.04,0.00033287,14]
[332646643,1721404249665,-702.75,0.00033287,14]
[332646644,1721404249676,-504.80709812,0.00033287,14]
[332646645,1721404249687,-500.0,0.00033287,14]
[332646646,1721404249699,-500.0,0.00033287,14]
[332646647,1721404249710,-500.0,0.00033287,14]
[332646648,1721404249721,-500.0,0.00033287,14]
[332646649,1721404249731,-1236.2,0.00033287,14]
[332646650,1721404249742,-500.0,0.00033287,14]
[332646651,1721404249753,-1419.38,0.00033287,14]
[332646652,1721404249763,-500.0,0.00033287,14]
[332646653,1721404249775,-500.0,0.00033287,14]
[332646654,1721404249786,-500.0,0.00033287,14]
[332646655,1721404249796,-500.0,0.00033287,14]
[332646656,1721404249806,-500.0,0.00033287,14]
[332646657,1721404249816,-500.0,0.00033287,14]
[332646658,1721404249826,-500.0,0.00033287,14]
[332646659,1721404249836,-2723.49,0.00033287,14]
[332646660,1721404249846,-500.0,0.00033287,14]
[332646661,1721404249855,-1245.55,0.00033287,14]
[332646662,1721404249865,-500.0,0.00033287,14]
[332646663,1721404249877,-1708.14,0.00033287,14]
[332646664,1721404249887,-500.0,0.00033287,14]
[332646665,1721404249897,-500.0,0.00033287,14]
[332646666,1721404249907,-500.0,0.00033287,14]
[332646667,1721404249918,-500.0,0.00033287,14]
[332646668,1721404249927,-2111.97,0.00033287,14]
[332646669,1721404249938,-500.0,0.00033287,14]
[332646670,1721404249947,-500.0,0.00033287,14]
[332646671,1721404249959,-2049.75,0.00033287,7]
[332646672,1721404249969,-500.0,0.00033287,14]
[332646673,1721404249979,-500.0,0.00033287,14]
[332646674,1721404249988,-3150.3,0.00033287,14]
[332646675,1721404249998,-583.78,0.00033287,14]
[332646676,1721404250008,-1668.58,0.00033287,14]
[332646677,1721404250018,-1289.1,0.00033287,14]
[332646678,1721404250029,-1118.18,0.00033287,14]
[332646679,1721404250041,-766.34,0.00033287,14]
[332646680,1721404250051,-913.26,0.00033287,14]
[332646681,1721404250061,-2072.22,0.00033287,14]
[332646682,1721404250070,-2467.95,0.00033287,14]
[332646683,1721404250080,-500.0,0.00033287,14]
[332646684,1721404250090,-2287.86,0.00033287,14]
[332646685,1721404250099,-500.0,0.00033287,14]
[332646686,1721404250109,-3489.46,0.00033287,14]
[332646687,1721404250118,-823.26,0.00033287,14]
[332646688,1721404250198,-500.0,0.00033287,14]
[332646689,1721404250209,-500.0,0.00033287,14]
[332646690,1721404250218,-500.0,0.00033287,14]
[332646691,1721404250229,-1578.39,0.00033287,14]
[332646692,1721404250238,-500.0,0.00033287,14]
[332646693,1721404250248,-500.0,0.00033287,14]
[332646694,1721404250257,-500.0,0.00033287,14]
[332646695,1721404250269,-500.0,0.00033287,14]
[332646696,1721404250279,-756.25,0.00033287,14]
[332646697,1721404250288,-500.0,0.00033287,14]
[332646698,1721404250298,-541.63,0.00033287,14]
[332646699,1721404250307,-500.0,0.00033287,14]
[332646700,1721404250316,-500.0,0.00033287,14]
[332646701,1721404250326,-500.0,0.00033287,14]
[332646702,1721404250335,-1412.59,0.00033287,14]
[332646703,1721404250344,-1067.11,0.00033287,14]
[332646704,1721404250354,-500.0,0.00033287,14]
[332646705,1721404250363,-500.0,0.00033287,14]
[332646706,1721404250372,-2948.42,0.00033287,14]
[332646707,1721404250381,-784.93,0.00033287,14]
[332646708,1721404250390,-500.0,0.00033287,14]
[332646709,1721404250399,-500.0,0.00033287,14]
[332646710,1721404250411,-640.01,0.00033287,14]
[332646711,1721404250422,-500.0,0.00033287,14]
[332646712,1721404250432,-513.52,0.00033287,14]
[332646713,1721404250442,-1028.44,0.00033287,14]
[332646714,1721404250452,-2252.48,0.00033287,14]
[332646715,1721404250461,-500.0,0.00033287,14]
[332646716,1721404250472,-3712.8,0.00033287,14]
[332646717,1721404250483,-2021.9,0.00033287,14]
[332646718,1721404250492,-1403.26,0.00033287,14]
[332646719,1721404250502,-500.0,0.00033287,14]
[332646720,1721404250511,-674.78,0.00033287,14]
[332646721,1721404250521,-937.06,0.00033287,14]
[332646722,1721404250531,-2643.01,0.00033287,14]
[332646723,1721404250540,-1627.03,0.00033287,14]
[332646724,1721404250549,-2462.55,0.00033287,14]
[332646725,1721404250558,-500.0,0.00033287,14]
[332646726,1721404250568,-500.0,0.00033287,14]
[332646727,1721404250577,-500.0,0.00033287,14]
[332646728,1721404250587,-3287.52,0.00033287,14]
[332646729,1721404250596,-500.0,0.00033287,14]
[332646730,1721404250605,-500.0,0.00033287,14]
[332646731,1721404250614,-1936.03,0.00033287,14]
[332646732,1721404250623,-500.0,0.00033287,14]
[332646733,1721404250633,-2333.6,0.00033287,14]
[332646734,1721404250642,-1393.59,0.00033287,14]
[332646735,1721404250652,-500.0,0.00033287,14]
[332646736,1721404250661,-1525.3,0.00033287,14]
[332646737,1721404250670,-500.0,0.00033287,14]
[332646738,1721404250679,-500.0,0.00033287,14]
[332646739,1721404250689,-500.0,0.00033287,14]
[332646740,1721404250698,-500.0,0.00033287,14]
[332646741,1721404250707,-500.0,0.00033287,14]
[332646742,1721404250717,-500.0,0.00033287,14]
[332646743,1721404250726,-500.0,0.00033287,14]
[332646744,1721404250735,-573.94,0.00033287,14]
[332646745,1721404250744,-500.0,0.00033287,14]
[332646746,1721404250753,-1371.28,0.00033287,14]
[332646747,1721404250762,-500.0,0.00033287,14]
[332646748,1721404250773,-3469.57,0.00033287,14]
[332646749,1721404250783,-631.52,0.00033287,14]
[332646750,1721404250792,-588.43,0.00033287,14]
[332646751,1721404250801,-500.0,0.00033287,14]
[332646752,1721404250811,-1955.31,0.00033287,14]
[332646753,1721404250821,-2176.17,0.00033287,14]
[332646754,1721404250830,-500.0,0.00033287,14]
[332646755,1721404250839,-500.0,0.00033287,14]
[332646756,1721404250848,-2427.02,0.00033287,14]
[332646757,1721404250859,-500.0,0.00033287,14]
[332646758,1721404250870,-500.0,0.00033287,14]
[332646759,1721404250883,-500.0,0.00033287,14]
[332646760,1721404250892,-1828.59,0.00033287,14]
[332646761,1721404250901,-5486.25,0.00033287,14]
[332646762,1721404250910,-500.0,0.00033287,14]
[332646763,1721404250920,-500.0,0.00033287,14]
[332646764,1721404250929,-1223.8,0.00033287,14]
[332646765,1721404250939,-2146.48,0.00033287,14]
[332646766,1721404250949,-3526.03,0.00033287,14]
[332646767,1721404250958,-500.0,0.00033287,14]
[332646768,1721404250967,-4860.92,0.00033287,14]
[332646769,1721404250976,-764.16,0.00033287,14]
[332646770,1721404250985,-500.0,0.00033287,14]
[332646771,1721404250995,-500.0,0.00033287,14]
[332646772,1721404251004,-911.04,0.00033287,14]
[332646773,1721404251013,-500.0,0.00033287,14]
[332646774,1721404251027,-500.0,0.00033287,14]
[332646775,1721404251037,-1186.38,0.00033287,14]
[332646776,1721404251045,-803.43,0.00033287,14]
[332646777,1721404251055,-1434.17,0.00033287,14]
[332646778,1721404251064,-2377.08,0.00033287,14]
[332646779,1721404251073,-1324.17,0.00033287,14]
[332646780,1721404251082,-579.72,0.00033287,14]
[332646781,1721404251091,-1063.45,0.00033287,14]
[332646782,1721404251101,-997.28,0.00033287,14]
[332646783,1721404251110,-500.0,0.00033287,14]
[332646784,1721404251121,-1722.45,0.00033287,14]
[332646785,1721404251132,-500.0,0.00033287,14]
[332646786,1721404251142,-1747.58,0.00033287,14]
[332646787,1721404251152,-691.87,0.00033287,14]
[332646788,1721404251162,-764.08,0.00033287,14]
[332646789,1721404251173,-2778.31,0.00033287,14]
[332646790,1721404251182,-731.94,0.00033287,14]
[332646791,1721404251192,-276.10036699,0.00033287,14]
[332646792,1721404251202,-746.56,0.00033287,14]
[332646793,1721404251212,-2370.14,0.00033287,14]
[332646794,1721404251221,-2176.52,0.00033287,14]
[332646795,1721404251232,-3433.1,0.00033287,14]
[332646796,1721404251243,-843.15,0.00033287,14]
[332646797,1721404251254,-500.0,0.00033287,14]
[332646798,1721404251266,-946.47,0.00033287,14]
[332646799,1721404251278,-2612.42,0.00033287,14]
[332646800,1721404251287,-3257.38,0.00033287,14]
[332646801,1721404251296,-4807.83,0.00033287,14]
[332646802,1721404251305,-500.0,0.00033287,14]
[332646803,1721404251314,-776.7,0.00033287,14]
[332646804,1721404251323,-500.0,0.00033287,14]
[332646805,1721404251333,-6084.24,0.00033287,14]
[332646806,1721404251343,-500.0,0.00033287,14]
[332646807,1721404251352,-3104.0,0.00033287,14]
[332646808,1721404251362,-500.0,0.00033287,14]
[332646809,1721404251371,-929.51,0.00033287,14]
[332646810,1721404251380,-1119.11,0.00033287,14]
[332646811,1721404251390,-591.57,0.00033287,14]
[332646812,1721404251400,-773.81,0.00033287,14]
[332646813,1721404251409,-886.94,0.00033287,14]
[332646814,1721404251419,-500.0,0.00033287,14]
[332646815,1721404251428,-834.14,0.00033287,14]
[332646816,1721404251437,-520.14,0.00033287,14]
[332646817,1721404251447,-8875.28339551,0.00033287,14]
[332646818,1721404251470,-4100.21660449,0.00033287,14]
[332646819,1721404251479,-3729.59,0.00033287,14]
[332646820,1721404251489,-500.0,0.00033287,14]
[332646821,1721404251498,-564.41,0.00033287,14]
[332646822,1721404251508,-500.0,0.00033287,14]
[332646823,1721404251517,-153.52259551,0.00033287,14]
[332646824,1721404251530,-470.89476816,0.00033287,14]
[332646825,1721404251541,-775.1703946,0.00033287,14]
[332646826,1721404251553,-802.76224173,0.00033287,14]
[332646827,1721404251563,-500.0,0.00033287,14]
[332646828,1721404251572,-500.0,0.00033287,14]
[332646829,1721404251581,-1455.60038414,0.00033287,14]
[332646830,1721404251592,-256.85740135,0.00033287,14]
[332646831,1721404251603,-1129.10829927,0.00033287,14]
[332646832,1721404251614,-380.59,0.00033287,14]
[332646833,1721404251627,-975.50742252,0.00033287,14]
[332646834,1721404251638,-247.14649272,0.00033287,14]
[332646835,1721404251647,-517.39,0.00033287,14]
[332646836,1721404251657,-43.12801528,0.00033287,14]
[332646837,1721404251732,-155.10992677,0.00031885,4]
[332646838,1721404251742,-152.73887486,0.00033149,2]
[332646839,1721404251751,-6500.92198472,0.00033287,14]
[332646840,1721404251760,-164.61485457,0.00033287,14]
[332646841,1721404251773,-1314.66514543,0.00033287,14]
[332646842,1721404251784,-500.0,0.00033287,14]
[332646843,1721404251795,-500.0,0.00033287,14]
[332646844,1721404251805,-7598.05,0.00033287,14]
[332646845,1721404251815,-500.0,0.00033287,14]
[332646846,1721404251824,-1223.02,0.00033287,14]
[332646847,1721404251834,-2618.85,0.00033287,14]
[332646848,1721404251843,-500.0,0.00033287,14]
[332646849,1721404251852,-500.0,0.00033287,14]
[332646850,1721404251862,-500.0,0.00033287,14]
[332646851,1721404251872,-500.0,0.00033287,14]
[332646852,1721404251884,-5744.48,0.00033287,14]
[332646853,1721404251894,-1017.25,0.00033287,14]
[332646854,1721404251903,-1155.3,0.00033287,14]
[332646855,1721404251914,-597.01,0.00033287,14]
[332646856,1721404251924,-4429.22,0.00033287,14]
[332646857,1721404251933,-783.69,0.00033287,14]
[332646858,1721404251943,-590.27,0.00033287,14]
[332646859,1721404251953,-500.0,0.00033287,14]
[332646860,1721404251963,-3470.76,0.00033287,14]
[332646861,1721404251972,-500.0,0.00033287,14]
[332646862,1721404251982,-501.12,0.00033287,14]
[332646863,1721404251993,-2242.37,0.00033287,14]
[332646864,1721404252002,-500.0,0.00033287,14]
[332646865,1721404252012,-2671.8,0.00033287,14]
[332646866,1721404252023,-500.0,0.00033287,14]
[332646867,1721404252033,-1458.44,0.00033287,14]
[332646868,1721404252043,-850.9,0.00033287,14]
[332646869,1721404252053,-3379.93,0.00033287,14]
[332646870,1721404252063,-782.77,0.00033287,14]
[332646871,1721404252074,-983.6,0.00033287,14]
[332646872,1721404252085,-2276.75,0.00033287,14]
[332646873,1721404252096,-2517.04,0.00033287,14]
[332646874,1721404252105,-1306.08,0.00033287,14]
[332646875,1721404252115,-7579.61,0.00033287,14]
[332646876,1721404252124,-528.52,0.00033287,14]
[332646877,1721404252133,-500.0,0.00033287,14]
[332646878,1721404252142,-422.07038344,0.00033287,14]
[332646879,1721404252152,-612.81,0.00033287,14]
[332646880,1721404252162,-2573.03,0.00033287,14]
[332646881,1721404252171,-500.0,0.00033287,14]
[332646882,1721404252181,-1623.35,0.00033287,14]
[332646883,1721404252191,-662.31,0.00033287,14]
[332646884,1721404252200,-944.06,0.00033287,14]
[332646885,1721404252210,-4158.79,0.00033287,14]
[332646886,1721404252219,-500.0,0.00033287,14]
[332646887,1721404252228,-500.0,0.00033287,14]
[332646888,1721404252238,-823.61,0.00033287,14]
[332646889,1721404252248,-2052.86,0.00033287,14]
[332646890,1721404252257,-4173.55,0.00033287,14]
[332646891,1721404252267,-3312.59,0.00033287,14]
[332646892,1721404252278,-500.0,0.00033287,14]
[332646893,1721404252287,-509.76089117,0.00033287,14]
[332646894,1721404252298,-2591.99,0.00033287,14]
[332646895,1721404252308,-500.0,0.00033287,14]
[332646896,1721404252317,-500.0,0.00033287,14]
[332646897,1721404252327,-500.0,0.00033287,14]
[332646898,1721404252336,-1670.33,0.00033287,14]
[332646899,1721404252346,-1110.3,0.00033287,14]
[332646900,1721404252355,-2234.78447792,0.00033287,14]
[332646901,1721404252370,-1061.17552208,0.00033287,14]
[332646902,1721404252379,-1941.96657793,0.00033287,14]
[332646903,1721404252390,-364.18900135,0.00033287,14]
[332646904,1721404252401,-882.1482593,0.00033287,14]
[332646905,1721404252412,-14.98616142,0.00033287,14]
[332646906,1721404252422,-358.52703858,0.00033287,14]
[332646907,1721404252434,-278.62064368,0.00033287,14]
[332646908,1721404252446,-808.40499999,0.00033287,14]
[332646909,1721404252457,-11267.87731775,0.00033287,14]
[332646910,1721404252467,-500.0,0.00033287,14]
[332646911,1721404252476,-1436.92085847,0.00033287,14]
[332646912,1721404252488,-699.72,0.00033287,14]
[332646913,1721404252499,-7786.22914153,0.00033287,14]
[332646914,1721404252509,-12334.5,0.00033287,14]
[332646915,1721404252520,-1634.46,0.00033287,14]
[332646916,1721404252529,-2349.36,0.00033287,14]
[332646917,1721404252539,-1715.39,0.00033287,14]
[332646918,1721404252548,-2218.75,0.00033287,14]
[332646919,1721404252559,-1842.31,0.00033287,14]
[332646920,1721404252568,-28938.05,0.00033287,14]
[332646921,1721404252578,-579.83,0.00033287,14]
[332646922,1721404252587,-500.0,0.00033287,14]
[332646923,1721404252597,-714.02,0.00033287,14]
[332646924,1721404252607,-2574.56,0.00033287,14]
[332646925,1721404252616,-6670.15,0.00033287,14]
[332646926,1721404252625,-500.0,0.00033287,14]
[332646927,1721404252635,-9010.61,0.00033287,14]
[332646928,1721404252646,-951.45,0.00033287,14]
[332646929,1721404252656,-1645.9,0.00033287,14]
[332646930,1721404252666,-1951.67,0.00033287,14]
[332646931,1721404252675,-500.0,0.00033287,14]
[332646932,1721404252685,-1689.61,0.00033287,14]
[332646933,1721404252694,-7708.62,0.00033287,14]
[332646934,1721404252704,-5729.14,0.00033287,14]
[332646935,1721404252714,-600.17787271,0.00033287,14]
[332646936,1721404252723,-1322.64,0.00033287,14]
[332646937,1721404252734,-1063.5,0.00033287,14]
[332646938,1721404252744,-1362.93,0.00033287,14]
[332646939,1721404252755,-12312.14,0.00033287,14]
[332646940,1721404252765,-1299.48,0.00033287,14]
[332646941,1721404252776,-924.96,0.00033287,14]
[332646942,1721404252786,-1762.71,0.00033287,14]
[332646943,1721404252795,-7146.83,0.00033287,14]
[332646944,1721404252805,-500.0,0.00033287,14]
[332646945,1721404252816,-977.45,0.00033287,14]
[332646946,1721404252825,-2889.83,0.00033287,14]
[332646947,1721404252836,-500.0,0.00033287,14]
[332646948,1721404252847,-579.71,0.00033287,14]
[332646949,1721404252858,-4396.85,0.00033287,14]
[332646950,1721404252867,-500.0,0.00033287,2]
[332646951,1721404252880,-7179.59,0.00033287,14]
[332646952,1721404252891,-502.88,0.00033287,14]
[332646953,1721404252901,-19689.3,0.00033287,14]
[332646954,1721404252911,-500.0,0.00033287,14]
[332646955,1721404252922,-1149.54,0.00033287,14]
[332646956,1721404252932,-3000.95,0.00033287,14]
[332646957,1721404252943,-12544.8,0.00033287,14]
[332646958,1721404252955,-3150.65,0.00033287,14]
[332646959,1721404252966,-1659.47,0.00033287,14]
[332646960,1721404252975,-500.0,0.00033287,14]
[332646961,1721404252984,-2369.19,0.00033287,14]
[332646962,1721404252994,-500.0,0.00033287,14]
[332646963,1721404253003,-871.86,0.00033287,14]
[332646964,1721404253014,-1257.98,0.00033287,14]
[332646965,1721404253024,-500.0,0.00033287,14]
[332646966,1721404253033,-500.0,0.00033287,14]
[332646967,1721404253044,-33865.98,0.00033287,14]
[332646968,1721404253054,-2554.25,0.00033287,14]
[332646969,1721404253064,-585.26,0.00033287,14]
[332646970,1721404253074,-500.0,0.00033287,14]
[332646971,1721404253085,-16039.8,0.00033287,14]
[332646972,1721404253095,-684.81,0.00033287,14]
[332646973,1721404253104,-500.0,0.00033287,14]
[332646974,1721404253115,-5448.92,0.00033287,14]
[332646975,1721404253125,-500.0,0.00033287,14]
[332646976,1721404253137,-7767.51,0.00033287,14]
[332646977,1721404253148,-2290.4,0.00033287,14]
[332646978,1721404253157,-1115.03,0.00033287,14]
[332646979,1721404253167,-4546.82,0.00033287,14]
[332646980,1721404253177,-15549.95,0.00033287,14]
[332646981,1721404253186,-1610.24,0.00033287,14]
[332646982,1721404253196,-500.0,0.00033287,14]
[332646983,1721404253206,-713.98,0.00033287,14]
[332646984,1721404253216,-500.0,0.00033287,14]
[332646985,1721404253226,-846.65,0.00033287,14]
[332646986,1721404253235,-500.0,0.00033287,14]
[332646987,1721404253245,-2566.11,0.00033287,14]
[332646988,1721404253256,-748.23,0.00033287,14]
[332646989,1721404253265,-7374.06,0.00033287,14]
[332646990,1721404253277,-12833.28,0.00033287,14]
[332646991,1721404253286,-2320.73,0.00033287,14]
[332646992,1721404253296,-504.43,0.00033287,14]
[332646993,1721404253309,-17988.02,0.00033287,14]
[332646994,1721404253319,-1344.07,0.00033287,14]
[332646995,1721404253328,-500.0,0.00033287,14]
[332646996,1721404253337,-6295.21,0.00033287,14]
[332646997,1721404253347,-500.0,0.00033287,14]
[332646998,1721404253356,-500.0,0.00033287,14]
[332646999,1721404253365,-13689.07,0.00033287,14]
[332647000,1721404253375,-4970.78,0.00033287,14]
[332647001,1721404253384,-2116.95,0.00033287,14]
[332647002,1721404253394,-2624.95,0.00033287,14]
[332647003,1721404253403,-500.0,0.00033287,14]
[332647004,1721404253412,-959.15,0.00033287,14]
[332647005,1721404253422,-2812.54,0.00033287,14]
[332647006,1721404253431,-3410.57,0.00033287,14]
[332647007,1721404253441,-1958.01,0.00033287,14]
[332647008,1721404253451,-543.11,0.00033287,14]
[332647009,1721404253461,-7256.02,0.00033287,14]
[332647010,1721404253471,-1843.94,0.00033287,14]
[332647011,1721404253481,-518.99,0.00033287,14]
[332647012,1721404253491,-9013.11,0.00033287,14]
[332647013,1721404253500,-500.0,0.00033287,14]
[332647014,1721404253510,-500.0,0.00033287,14]
[332647015,1721404253519,-2927.81,0.00033287,14]
[332647016,1721404253528,-7140.38,0.00033287,14]
[332647017,1721404253538,-500.0,0.00033287,14]
[332647018,1721404253547,-3936.33,0.00033287,14]
[332647019,1721404253556,-3548.25,0.00033287,14]
[332647020,1721404253566,-7123.89,0.00033287,14]
[332647021,1721404253575,-500.0,0.00033287,14]
[332647022,1721404253584,-2418.71,0.00033287,14]
[332647023,1721404253594,-500.0,0.00033287,14]
[332647024,1721404253603,-5061.23,0.00033287,14]
[332647025,1721404253612,-1099.27,0.00033287,14]
[332647026,1721404253626,-720.78,0.00033287,14]
[332647027,1721404253636,-7161.68,0.00033287,14]
[332647028,1721404253646,-4343.92,0.00033287,14]
[332647029,1721404253655,-500.0,0.00033287,14]
[332647030,1721404253665,-1065.22,0.00033287,14]
[332647031,1721404253675,-5135.62,0.00033287,14]
[332647032,1721404253686,-500.0,0.00033287,14]
[332647033,1721404253695,-16158.34,0.00033287,14]
[332647034,1721404253704,-500.0,0.00033287,14]
[332647035,1721404253714,-500.0,0.00033287,14]
[332647036,1721404253723,-2158.0,0.00033287,14]
[332647037,1721404253733,-845.57,0.00033287,14]
[332647038,1721404253742,-518.72955988,0.00033287,14]
[332647039,1721404253754,-500.0,0.00033287,14]
[332647040,1721404253764,-5083.59,0.00033287,14]
[332647041,1721404253774,-921.29,0.00033287,14]
[332647042,1721404253784,-9737.63,0.00033287,14]
[332647043,1721404253794,-500.0,0.00033287,14]
[332647044,1721404253804,-500.0,0.00033287,14]
[332647045,1721404253813,-2072.08,0.00033287,14]
[332647046,1721404253823,-500.0,0.00033287,14]
[332647047,1721404253832,-1561.89,0.00033287,14]
[332647048,1721404253842,-4838.92,0.00033287,14]
[332647049,1721404253851,-510.15705358,0.00033287,14]
[332647050,1721404253860,-6611.96,0.00033287,14]
[332647051,1721404253874,-500.0,0.00033287,2]
[332647052,1721404253883,-500.0,0.00033287,14]
[332647053,1721404253893,-719.18,0.00033287,14]
[332647054,1721404253903,-500.0,0.00033287,14]
[332647055,1721404253918,-500.0,0.00033287,14]
[332647056,1721404253928,-500.0,0.00033287,14]
[332647057,1721404253938,-500.0,0.00033287,14]
[332647058,1721404253949,-8105.6,0.00033287,14]
[332647059,1721404253959,-500.0,0.00033287,14]
[332647060,1721404253969,-4351.25,0.00033287,14]
[332647061,1721404253979,-673.49,0.00033287,14]
[332647062,1721404253988,-1381.41,0.00033287,14]
[332647063,1721404253998,-1724.11,0.00033287,14]
[332647064,1721404254007,-2493.32,0.00033287,14]
[332647065,1721404254017,-4816.46,0.00033287,14]
[332647066,1721404254029,-809.11,0.00033287,14]
[332647067,1721404254039,-3427.99,0.00033287,14]
[332647068,1721404254049,-500.0,0.00033287,14]
[332647069,1721404254059,-500.0,0.00033287,14]
[332647070,1721404254069,-163.81622978,0.00033287,14]
[332647071,1721404254079,-14395.48,0.00033287,14]
[332647072,1721404254089,-4458.07,0.00033287,14]
[332647073,1721404254099,-500.0,0.00033287,14]
[332647074,1721404254108,-1021.19,0.00033287,14]
[332647075,1721404254118,-2412.68,0.00033287,14]
[332647076,1721404254128,-500.0,0.00033287,14]
[332647077,1721404254138,-711.73,0.00033287,14]
[332647078,1721404254148,-612.06,0.00033287,14]
[332647079,1721404254158,-986.06,0.00033287,14]
[332647080,1721404254168,-5078.8,0.00033287,14]
[332647081,1721404254177,-7014.28,0.00033287,14]
[332647082,1721404254187,-579.04,0.00033287,14]
[332647083,1721404254197,-1084.8,0.00033287,14]
[332647084,1721404254208,-3268.33,0.00033287,14]
[332647085,1721404254217,-293.0197279,0.00033287,14]
[332647086,1721404254227,-500.0,0.00033287,14]
[332647087,1721404254236,-2151.03303189,0.00033287,14]
[332647088,1721404254595,-1123.24162608,0.00032621,5]
[332647089,1721404254605,-6849.61696811,0.00033287,14]
[332647090,1721404254615,-4940.01,0.00033287,14]
[332647091,1721404254624,-4849.94,0.00033287,14]
[332647092,1721404254634,-9236.16,0.00033287,14]
[332647093,1721404254644,-1329.79,0.00033287,14]
[332647094,1721404254654,-500.0,0.00033287,14]
[332647095,1721404254663,-1759.67,0.00033287,14]
[332647096,1721404254673,-500.0,0.00033287,14]
[332647097,1721404254683,-8561.66,0.00033287,14]
[332647098,1721404254693,-500.0,0.00033287,14]
[332647099,1721404254703,-500.0,0.00033287,14]
[332647100,1721404254713,-500.0,0.00033287,14]
[332647101,1721404254722,-500.0,0.00033287,14]
[332647102,1721404254731,-9053.07,0.00033287,14]
[332647103,1721404254741,-7088.72,0.00033287,14]
[332647104,1721404254751,-7365.65,0.00033287,14]
[332647105,1721404254761,-1387.6,0.00033287,14]
[332647106,1721404254772,-1804.67,0.00033287,14]
[332647107,1721404254782,-3770.05,0.00033287,14]
[332647108,1721404254792,-687.74,0.00033287,14]
[332647109,1721404254802,-1637.67,0.00033287,14]
[332647110,1721404254812,-500.0,0.00033287,14]
[332647111,1721404254822,-500.0,0.00033287,14]
[332647112,1721404254831,-2940.65,0.00033287,14]
[332647113,1721404254841,-500.0,0.00033287,14]
[332647114,1721404254850,-500.0,0.00033287,14]
[332647115,1721404254860,-500.0,0.00033287,14]
[332647116,1721404254870,-6733.43,0.00033287,14]
[332647117,1721404254883,-500.0,0.00033287,14]
[332647118,1721404254893,-500.0,0.00033287,14]
[332647119,1721404254903,-1179.7,0.00033287,14]
[332647120,1721404254912,-7685.85,0.00033287,14]
[332647121,1721404254922,-500.0,0.00033287,14]
[332647122,1721404254932,-1025.91,0.00033287,14]
[332647123,1721404254943,-673.81,0.00033287,14]
[332647124,1721404254955,-5069.82,0.00033287,14]
[332647125,1721404254965,-3890.22,0.00033287,14]
[332647126,1721404254975,-594.53,0.00033287,14]
[332647127,1721404254985,-3237.13,0.00033287,14]
[332647128,1721404254995,-1055.49,0.00033287,14]
[332647129,1721404255005,-500.0,0.00033287,14]
[332647130,1721404255014,-500.0,0.00033287,14]
[332647131,1721404255024,-2282.97,0.00033287,14]
[332647132,1721404255034,-2071.37,0.00033287,2]
[332647133,1721404255044,-500.0,0.00033287,14]
[332647134,1721404255053,-5864.93,0.00033287,14]
[332647135,1721404255063,-500.0,0.00033287,14]
[332647136,1721404255072,-2285.44,0.00033287,14]
[332647137,1721404255082,-1204.2,0.00033287,14]
[332647138,1721404255091,-500.0,0.00033287,14]
[332647139,1721404255100,-2846.63344013,0.00033287,14]
[332647140,1721404255114,-3956.00655987,0.00033287,14]